{"text_format":"1","workbook":"xlsx","n_sheets":5,"sheets":["Angaben für Ihr Catering","Frühstück & Kaffeepause","Sandwiches & Salate","Apéro","Getränke"],"not_rendered":{"charts":0,"images":58,"macros":1,"external_links":0,"defined_names":5,"comments":0,"pivot_tables":0},"unopened":[],"bounds":{"document_bytes":16777216,"sheet_cells":100000,"rows_first":2000,"rows_last":500,"rows_between":2000,"halvings":0,"cell_chars":16384,"cell_head_chars":4096},"cells_cut":0,"cells_raw":0,"read":"whole","date_system":"1900"}

{"sheet":"Angaben für Ihr Catering","index":0,"n_rows":63,"n_cols":34,"rows_kept":63,"cut":false,"hidden":false,"merged":[[4,1,4,19],[4,21,4,39],[5,1,5,19],[5,21,5,39],[7,1,7,19],[33,1,33,19],[35,1,35,19],[8,1,8,19],[7,21,7,39],[8,21,8,39],[14,21,14,39],[9,1,9,19],[10,1,10,19],[11,1,11,19],[12,1,12,19],[13,1,13,19],[14,1,14,19],[9,21,9,39],[10,21,10,39],[11,21,11,39],[12,21,12,39],[13,21,13,39],[37,1,37,19],[39,1,39,19],[21,21,21,39],[23,21,23,39],[25,21,25,39],[27,21,27,39],[29,21,29,39],[21,1,21,19],[23,1,23,19],[25,1,25,19],[27,1,27,19],[29,1,29,19],[31,1,31,19],[31,21,31,39],[33,21,33,39],[35,21,35,39],[55,1,55,39],[57,31,57,32],[57,33,57,39],[57,1,57,29],[37,21,37,39],[39,21,39,39],[41,1,41,11],[41,12,51,39],[44,1,44,10],[45,1,45,10],[46,1,46,10],[47,1,47,10],[48,1,48,10],[49,1,49,10],[50,1,50,10],[51,1,51,10],[58,1,58,29],[58,31,58,32],[58,33,58,39],[59,1,59,29],[59,31,59,32],[59,33,59,39],[62,1,62,29],[62,31,62,32],[62,33,62,39],[60,1,60,29],[60,31,60,32],[60,33,60,39],[61,1,61,29],[61,31,61,32],[61,33,61,39]]}
[]
[]
[]
[]
[null,"Catering ",null,null,null,null,null,null,null,null,null,null,null,null,null,null,null,null,null,null,null,"Catering "]
[null,"Forum St. Peter",null,null,null,null,null,null,null,null,null,null,null,null,null,null,null,null,null,null,null,"Paradeplatz"]
[]
[null,"Forum St.Peter",null,null,null,null,null,null,null,null,null,null,null,null,null,null,null,null,null,null,null,"Reception"]
[null,"St.Peterstrasse 19",null,null,null,null,null,null,null,null,null,null,null,null,null,null,null,null,null,null,null,"Paradeplatz 8"]
[null,"8070 Zürich",null,null,null,null,null,null,null,null,null,null,null,null,null,null,null,null,null,null,null,"8070 Zürich"]
[]
[null,"Kontaktperson vor Ort:",null,null,null,null,null,null,null,null,null,null,null,null,null,null,null,null,null,null,null,"Kontaktperson vor Ort:"]
[null,"T +41 44 333 99 99",null,null,null,null,null,null,null,null,null,null,null,null,null,null,null,null,null,null,null,"T +41 44 333 99 11"]
[]
[null,"reservation.fsp@credit-suisse.com",null,null,null,null,null,null,null,null,null,null,null,null,null,null,null,null,null,null,null,"exb.reception@credit-suisse.com"]
[]
[]
[]
[]
[]
[]
[null,"Vorname / Name:"]
[]
[null,"PID Nr. / GPN:"]
[]
[null,"Geschäftseinheit / Legal Entity Rechnungsempfänger:"]
[]
[null,"Email-Adresse:"]
[]
[null,"Anlasstitel:"]
[]
[null,"Raum Nummer:"]
[]
[null,"Lieferdatum:"]
[null,null,null,null,null,null,null,null,null,null,null,null,null,null,null,null,null,null,null,null,null,9]
[null,"Anfangs- und Schlusszeit Veranstaltung:"]
[]
[null,"Pausenzeiten:"]
[]
[null,"Anzahl Personen:"]
[]
[null,"Bemerkungen, spezielle Anliegen:"]
[]
[]
[null,"Bestelldatum"]
[null,{"$f":"TODAY()","v":"2023-09-11"}]
[]
[]
[]
[]
[]
[]
[]
[]
[]
[null,"Zusammenfassung Ihrer Bestellung"]
[]
[null,"Frühstück & Kaffeepause",null,null,null,null,null,null,null,null,null,null,null,null,null,null,null,null,null,null,null,null,null,null,null,null,null,null,null,null,null,"CHF",null,{"$f":"SUM('Frühstück & Kaffeepause'!L6:'Frühstück & Kaffeepause'!L81)","v":0}]
[null,"Working Lunch",null,null,null,null,null,null,null,null,null,null,null,null,null,null,null,null,null,null,null,null,null,null,null,null,null,null,null,null,null,"CHF",null,{"$f":"SUM('Sandwiches & Salate'!K48)","v":0}]
[null,"Apéro",null,null,null,null,null,null,null,null,null,null,null,null,null,null,null,null,null,null,null,null,null,null,null,null,null,null,null,null,null,"CHF",null,{"$f":"SUM(Apéro!L6:'Apéro'!L98)","v":0}]
[null,"Getränke",null,null,null,null,null,null,null,null,null,null,null,null,null,null,null,null,null,null,null,null,null,null,null,null,null,null,null,null,null,"CHF",null,{"$f":"SUM(Getränke!J6:'Getränke'!J71)","v":0}]
[]
[null,"Total Ihrer Bestellung",null,null,null,null,null,null,null,null,null,null,null,null,null,null,null,null,null,null,null,null,null,null,null,null,null,null,null,null,null,"CHF",null,{"$f":"SUM(AH58:AN62)","v":0}]

{"sheet":"Frühstück & Kaffeepause","index":1,"n_rows":83,"n_cols":12,"rows_kept":83,"cut":false,"hidden":false,"merged":[[0,2,0,11],[1,2,1,11],[53,2,53,11],[70,2,70,11]]}
[null,null,"FRÜHSTÜCK & KAFFEEPAUSEN"]
[null,null,"Pausenverpflegung à la carte"]
[]
[null,null,null,null,null,"FRÜHSTÜCKSGEBÄCK",null,null,"Preis",null,"Einheit","Betrag"]
[]
[null,null,null,null,null,"Buttergipfel",null,null,2,"/","Stk.",{"$f":"I6*C6","v":0}]
[null,null,null,null,null,"Laugengipfel",null,null,2,"/","Stk.",{"$f":"I7*C7","v":0}]
[null,null,null,null,null,"Vollkorngipfel",null,null,2,"/","Stk.",0]
[null,null,null,null,null,"Maisbrötchen",null,null,2.7,"/","Stk.",0]
[null,null,null,null,null,"Vollkornbrötchen",null,null,2.7,"/","Stk.",0]
[null,null,null,null,null,"Fitnessbrötchen (Früchtebrötchen)",null,null,2.7,"/","Stk.",0]
[null,null,null,null,null,"Schoggibrötchen",null,null,2.7,"/","Stk.",0]
[null,null,null,null,null,"Proteinbrötchen",null,null,2.7,"/","Stk.",0]
[null,null,null,null,null,"Laugenbretzel mit Butter",null,null,3.2,"/","Stk.",0]
[null,null,null,null,null,"Glutenfreies Brötchen",null,null,3.2,"/","Stk.",0]
[]
[null,null,null,null,null,"MINI GEBÄCK"]
[]
[null,null,null,null,null,"Mini Buttergipfel",null,null,1.7,"/","Stk.",{"$f":"I19*C19","v":0}]
[null,null,null,null,null,"Mini Laugengipfel",null,null,1.7,"/","Stk.",{"$f":"I20*C20","v":0}]
[null,null,null,null,null,"Mini Rusticogipfel",null,null,1.7,"/","Stk.",0]
[null,null,null,null,null,"Mini Nussschnecke",null,null,3.5,"/","Stk.",0]
[null,null,null,null,null,"Mini Vanilleplunder",null,null,3.5,"/","Stk.",0]
[null,null,null,null,null,"Gefüllter Mini-Donut",null,null,3,"/","Stk.",0]
[null,null,null,null,null,"Windbeutel gefüllt mit Vanillecrème",null,null,3.5,"/","Stk.",0]
[]
[]
[null,null,null,null,null,"BIRCHERMÜESLI & FRÜCHTE"]
[]
[null,null,null,null,null,"Birchermüesli im Weckglas",null,null,3.5,"/","Stk.",{"$f":"I30*C30","v":0}]
[null,null,null,null,null,"Veganes Birchermüesli im Weckglas",null,null,3.5,"/","Stk.",0]
[null,null,null,null,null,"Platte mit geschnittenen Früchten",null,null,21.5,"/","Stk.",0]
[null,null,null,null,null,"Saisonale, ganze Früchte (8-10 Stück) im Korb",null,null,14.5,"/","Stk.",0]
[null,null,null,null,null,"Trek Proteinriegel \"Banana & Hafer\"",null,null,3.2,"/","Stk.",0]
[null,null,null,null,null,"Trek Proteinriegel \"Salty Caramel\"",null,null,3.2,"/","Stk.",0]
[null,null,null,null,null,"Trek Proteinriegel \"Kakao & Kokos\"",null,null,3.2,"/","Stk.",0]
[null,null,null,null,null,"Hausgemachte Nussmischung (50g)",null,null,5,"/","Stk.",0]
[null,null,null,null,null,"Saisonale, geschnittene Früchte im Weckglas",null,null,3.5,"/","Stk.",0]
[]
[null,null,null,null,null,"GEBÄCK SÜSS"]
[]
[null,null,null,null,null,"Schoggicake ",null,null,4.5,"/","Stk.",{"$f":"I42*C42","v":0}]
[null,null,null,null,null,"Zitronencake ",null,null,4.5,"/","Stk.",0]
[null,null,null,null,null,"Rüeblicake",null,null,4.5,"/","Stk.",0]
[null,null,null,null,null,"Veganer Bananencake",null,null,4.5,"/","Stk.",0]
[null,null,null,null,null,"Amaretti",null,null,3,"/","Stk.",0]
[null,null,null,null,null,"Macarons (Mindestbestellmenge 5 Stück) => Anzahl",null,null,2.9,"/","Stk.",0]
[null,null,null,null,null,"Friandises (2 Stück)",null,null,4,"/","2 Stk.",0]
[null,null,null,null,null,"Appenzeller Biberli",null,null,3.5,"/","Stk.",0]
[null,null,null,null,null,"Züriwerk Trockengebäck ",null,null,3.5,"/","Stk.",0]
[null,null,null,null,null,"Weihnachtsguetzli (November / Dezember)",null,null,3.5,"/","2 Stk.",0]
[]
[]
[null,null,"Frühstück und Kaffeepausen Pauschalen Vormittag"]
[]
[null,null,null,null,null,null,null,null,"Preis",null,"Einheit","Betrag"]
[]
[null,null,null,null,null,"Morning Coffeebreak Basic (ab 5 Personen)",null,null,8.5,"/","Person",{"$f":"I58*C58","v":0}]
[null,null,null,null,null,"Butter-, Laugen- und Vollkorngipfeli, "]
[null,null,null,null,null,"Kaffee, Tee, Mineralwasser"]
[]
[null,null,null,null,null,"Morning Coffeebreak Classic (ab 5 Personen)",null,null,12.5,"/","Person",{"$f":"I62*C62","v":0}]
[null,null,null,null,null,"Butter-, Laugen- und Vollkorngipfeli, "]
[null,null,null,null,null,"Kaffee, Tee, Mineralwasser, Orangensaft, saisonaler Smoothie"]
[]
[null,null,null,null,null,"Frühstück (ab 5 Personen)",null,null,28,"/","Person",{"$f":"I66*C66","v":0}]
[null,null,null,null,null,"Variation von Mini Brötli süss und salzig, Birchermüesli"]
[null,null,null,null,null,"Platte mit Italienischem und Schweizer Käse, assortierte Platte mit Trockenfleisch"]
[null,null,null,null,null,"Butter, Konfitüre, Honig, Platte mit geschnittenen Früchten"]
[]
[null,null,"Kaffeepausen Pauschalen Nachmittag"]
[]
[null,null,null,null,null,"Afternoon Coffeebreak-Packages erhätlich von 13.00-16.00 Uhr"]
[null,null,null,null,null,"Mindestbestellmenge: 5 Personen"]
[null,null,null,null,null,null,null,null,"Preis",null,"Einheit","Betrag"]
[]
[null,null,null,null,null,"Afternoon Coffeebreak Classic (ab 5 Personen)",null,null,18,"/","Person",{"$f":"I77*C77","v":0}]
[null,null,null,null,null,"Kaffee, Tee, Mineralwasser, Softgetränke, Orangensaft"]
[null,null,null,null,null,"Amaretti, Friandises, geschnittene Früchte im Weckglas"]
[]
[null,null,null,null,null,"Afternoon Coffeebreak Sunset (ab 5 Personen)",null,null,19.5,"/","Person",{"$f":"I81*C81","v":0}]
[null,null,null,null,null,"Kaffee, Tee, Mineralwasser, Softgetränke, Orangensaft"]
[null,null,null,null,null,"Amaretti, Windbeutel, Appenzeller Biberli"]

{"sheet":"Sandwiches & Salate","index":2,"n_rows":48,"n_cols":11,"rows_kept":48,"cut":false,"hidden":false,"merged":[[0,2,0,10],[1,2,1,10],[31,2,31,10]]}
[null,null,"MITTAGESSEN"]
[null,null,"Sandwiches"]
[]
[]
[null,null,null,null,null,"LUNCH-MINI-SANDWICHES (Mindestbestellmenge: 6 Stk. pro Sorte)",null,"Preis",null,"Einheit","Betrag"]
[]
[null,null,null,null,null,"Antipasti-Bircherbrötli mit Tomate, Peperoni, Reismayonnaise, Rucola",null,5,"/","Stk.",{"$f":"H7*C7","v":0}]
[null,null,null,null,null,"Ciabatta mit Hummus, Tomate, Gurke, Kresse",null,5,"/","Stk.",0]
[null,null,null,null,null,"Eiersalat-Teebrötli mit Salat, Mayonnaise",null,5,"/","Stk.",0]
[null,null,null,null,null,"Emmentaler-Castellino mit Rucola, Tomate",null,5,"/","Stk.",0]
[null,null,null,null,null,"Brie-Nussbrötli mit Birne",null,5,"/","Stk.",0]
[null,null,null,null,null,"Ciabatta mit Mozzarella, Tomate, Basikilum, Pesto",null,5,"/","Stk.",0]
[null,null,null,null,null,"Mostbröckli-Laugenbrötli mit Essiggurke",null,5,"/","Stk.",0]
[null,null,null,null,null,"Hinterschinken-Wallisersemmeli mit Salat, Ei",null,5,"/","Stk.",0]
[null,null,null,null,null,"Salami-Pastorello mit Emmentale, Essiggurke",null,5,"/","Stk.",0]
[null,null,null,null,null,"Fleischkäse-Schlumberger mit Ei, Gurke, Tartarensauce",null,5,"/","Stk.",0]
[null,null,null,null,null,"Lachs-Laugenbrötli mit Kapern, Dill",null,5,"/","Stk.",0]
[]
[null,null,null,null,null,"LUNCH-SANDWICHES (Mindestbestellmenge: 3 Stk. pro Sorte)"]
[]
[null,null,null,null,null,"Nusssemmel mit Gruyere, Kürbischutney und Blattsalat",null,7.5,"/","Stk.",{"$f":"H21*C21","v":0}]
[null,null,null,null,null,"Tomaten-Focaccia mit Mozzarella, Pesto, Tomaten und Rucola",null,7.5,"/","Stk.",0]
[null,null,null,null,null,"Weggli mit Salami, Cocktailsauce und Cornichons",null,6.5,"/","Stk.",0]
[null,null,null,null,null,"Dinkelsemmel mit Ofenfleischkäse, Senf und Salat",null,6.5,"/","Stk.",0]
[null,null,null,null,null,"Sesambagel mit Graved Lachs, Meerrettich, Dill und Salat",null,9,"/","Stk.",0]
[null,null,null,null,null,"Semmeli mit Trutenbrust, Mangochutney und Sesam-Mayonnaise",null,7,"/","Stk.",0]
[null,null,null,null,null,"Proteinbrötchen mit Brie, Preiselbeeren und Brunnenkresse",null,7.5,"/","Stk.",0]
[null,null,null,null,null,"Sonnenblumenkernbrötli mit Hummus, Feigensenf und Rucola",null,6.5,"/","Stk.",0]
[null,null,null,null,null,"Weggli mit Eier und Schnittlauch ",null,6.5,"/","Stk.",0]
[null,null,null,null,null,"Rustico mit Roastbeef, Tartarensauce und Tomate",null,9,"/","Stk.",0]
[]
[null,null,"Salate"]
[]
[null,null,null,null,null,"KLEINE SALATE (Mindestbestellmenge: 3 Stk. pro Sorte)",null,"Preis",null,"Einheit","Betrag"]
[]
[null,null,null,null,null,"Rüeblisalat mit Orange und Baumnüssen",null,6,"/","Stk.",{"$f":"H36*C36","v":0}]
[null,null,null,null,null,"Poulet-Curry-Salat mit Früchten und  Cashew Nüssen ",null,8.5,"/","Stk.",{"$f":"H37*C37","v":0}]
[null,null,null,null,null,"Griechischer Salat mit Feta und Oliven",null,7,"/","Stk.",0]
[null,null,null,null,null,"Gemischter Salat mit Gurke, Tomate, Rüebli und Mais",null,6,"/","Stk.",0]
[null,null,null,null,null,"Tomatensalat mit Büffelmozzarella und Aceto Balsamico",null,7,"/","Stk.",0]
[]
[null,null,null,null,null,"GROSSE SALATE (Mindestbestellmenge: 3 Stk. pro Sorte)"]
[]
[null,null,null,null,null,"Salade Niçoise mit Thunfisch (Indonesien), Ei, grüne Bohnen und Kartoffeln",null,14,"/","Stk.",{"$f":"H44*C44","v":0}]
[null,null,null,null,null,"Caesar Salat mit Poulet, Speck, Croûtons und Parmesan",null,14,"/","Stk.",0]
[null,null,null,null,null,"Gemischter Salat mit Gurke, Karotte, Mais, Tomate und Falafel",null,12,"/","Stk.",0]
[null,null,null,null,null,"Nüsslisalat mit Speck, Ei und Croûtons",null,13,"/","Stk.",0]
[null,null,null,null,null,"Salat mit Rinderfilet-Streifen, Feigen, Karotten, Kabis, Kürbiskernen und Sprossen",null,16,"/","Stk.",0]

{"sheet":"Apéro","index":3,"n_rows":131,"n_cols":12,"rows_kept":131,"cut":false,"hidden":false,"merged":[[0,2,0,11],[1,2,1,11],[2,2,2,11],[73,2,73,11],[74,2,74,11]]}
[null,null,"APÉRO"]
[null,null,"Apéro à la carte"]
[null,null,"Zum Apéro rechnet der Küchenchef mit 5 Häppchen, zum Cocktail mit 10 Häppchen pro Person"]
[null,null,null,null,null,null,"MINI KNOPFBRÖTLI (Diverse Sorten, Mindestbestellmenge: 6 Stk. pro Sorte)",null,"Preis",null,"Einheit","Betrag"]
[]
[null,null,null,null,null,null,"Brie",null,3.5,"/","Stk.",{"$f":"I6*C6","v":0}]
[null,null,null,null,null,null,"Ei",null,3.5,"/","Stk.",0]
[null,null,null,null,null,null,"Salami",null,3.5,"/","Stk.",0]
[null,null,null,null,null,null,"Geräucherter Trutenbrust",null,3.5,"/","Stk.",0]
[null,null,null,null,null,null,"Greyerzerkäse",null,3.5,"/","Stk.",0]
[null,null,null,null,null,null,"Thon",null,3.5,"/","Stk.",0]
[null,null,null,null,null,null,"Rohschinken",null,3.5,"/","Stk.",0]
[null,null,null,null,null,null,"Bündnerfleisch",null,3.5,"/","Stk.",0]
[null,null,null,null,null,null,"Roastbeef",null,3.5,"/","Stk.",0]
[null,null,null,null,null,null,"Graved Lachs (Norwegen) mit Meerrettich",null,3.5,"/","Stk.",0]
[]
[null,null,null,null,null,null,"CORNETS GEFÜLLT (Mindestbestellmenge: 4 Stück pro Sorte)"]
[]
[null,null,null,null,null,null,"mit Rauchlachs (Norwegen), Gurken und Meerrettich-Frischkäse",null,4,"/","Stk.",{"$f":"I19*C19","v":0}]
[null,null,null,null,null,null,"mit Rindstatar und Kapern",null,4,"/","Stk.",0]
[null,null,null,null,null,null,"mit Avocado und Black Tiger Crevette (Vietnam)",null,4,"/","Stk.",0]
[null,null,null,null,null,null,"mit Ziegenfrischkäse, Honig und Thymian",null,4,"/","Stk.",0]
[null,null,null,null,null,null,"mit getrüffeltem Schweizer Ei",null,4,"/","Stk.",0]
[null,null,null,null,null,null,"mit Basilikum-Ricotta und Schmortomaten",null,4,"/","Stk.",0]
[]
[null,null,null,null,null,null,"FINGERFOOD KALT, VEGETARISCH (Mindestbestellmenge: 5 Stück pro Sorte)"]
[]
[null,null,null,null,null,null,"Marinierte Oliven (100 g) ",null,8.5,"/","Port",{"$f":"I28*C28","v":0}]
[null,null,null,null,null,null,"Blätterteigflûtes (60 g) ",null,12.5,"/","Port",0]
[null,null,null,null,null,null,"Chips (30 g) ",null,3.5,"/","Port",0]
[null,null,null,null,null,null,"Hausgemachte Nussmischung (50g)",null,5,"/","Port",0]
[null,null,null,null,null,null,"Macarons mit Ziegenfrischkäse und Feige",null,3,"/","Stk.",0]
[null,null,null,null,null,null,"Chicorée-Orangen-Salat mit Baumnüssen",null,4,"/","Stk.",0]
[]
[null,null,null,null,null,null,"FINGERFOOD KALT  (Mindestbestellmenge: 5 Stück pro Sorte)"]
[]
[null,null,null,null,null,null,"Parmesanmöckli (100 g) ",null,10.5,"/","Port",{"$f":"I37*C37","v":0}]
[null,null,null,null,null,null,"Marinierter Lachs (Norwegen) auf Gurkensalat, Crème Fraîche und Dill",null,5,"/","Stk.",0]
[null,null,null,null,null,null,"Tuna Tataki (Indonesien) mit Soja, Sake, Mirin und Rettich",null,5.5,"/","Stk.",0]
[null,null,null,null,null,null,"Black-Tiger Crevette (Vietnam) mit Avocadomousse",null,4.5,"/","Stk.",0]
[null,null,null,null,null,null,"Pouletstreifen mit Curry, Erdnüssen und Ananas",null,4.5,"/","Stk.",0]
[null,null,null,null,null,null,"Vitello Tonnato",null,4.5,"/","Stk.",0]
[null,null,null,null,null,null,"Roastbeef mit Rucola und Parmesan",null,5,"/","Stk.",0]
[]
[null,null,null,null,null,null,"FINGERFOOD WARM, VEGETARISCH (Mindestbestellmenge: 5 Stück pro Sorte)"]
[]
[null,null,null,null,null,null,"Vegetarische Capuns",null,4.5,"/","Stk.",{"$f":"I47*C47","v":0}]
[null,null,null,null,null,null,"Gemüse-Samosa mit veganem Joghurt-Minz-Dip ",null,4.5,"/","Stk.",0]
[null,null,null,null,null,null,"Mini Pizza Margherita",null,3,"/","Stk.",0]
[null,null,null,null,null,null,"Pakoras mit Mangochutney",null,4.5,"/","Stk.",0]
[null,null,null,null,null,null,"Chäschüechli",null,3,"/","Stk.",0]
[null,null,null,null,null,null,"Frühlingsrollen mit Gemüse",null,3.5,"/","2 Stk.",0]
[null,null,null,null,null,null,"Spinatchüechli",null,3,"/","Stk.",0]
[]
[null,null,null,null,null,null,"FINGERFOOD WARM (Mindestbestellmenge: 5 Stück pro Sorte)"]
[]
[null,null,null,null,null,null,"Schinkengipfeli",null,3,"/","Stk.",{"$f":"I57*C57","v":0}]
[null,null,null,null,null,null,"Kalbscipollata mit Senf ",null,3,"/","2 Stk. ",0]
[null,null,null,null,null,null,"Gebackene Crevette (Vietnam) im Termpurateig",null,4,"/","Stk.",0]
[null,null,null,null,null,null,"Mini Cheeseburger",null,5,"/","Stk.",0]
[null,null,null,null,null,null,"Pouletspiess Bangkok-Style",null,4.5,"/","Stk.",0]
[]
[null,null,null,null,null,null,"SUPPE (Mindestbestellmenge: 5 Stück pro Sorte)"]
[]
[null,null,null,null,null,null,"Kürbiscrèmesuppe",null,4,"/","Stk.",{"$f":"I65*C65","v":0}]
[null,null,null,null,null,null,"Süsskartoffel-Curry-Suppe",null,4,"/","Stk.",{"$f":"I66*C66","v":0}]
[]
[null,null,null,null,null,null,"SÜSSER ABSCHLUSS (Mindestbestellmenge: 5 Stück pro Sorte)"]
[]
[null,null,null,null,null,null,"Friandises (2 Stück)",null,4,"/","2 Stk.",{"$f":"I70*C70","v":0}]
[null,null,null,null,null,null,"Cheesecake",null,3,"/","Stk.",{"$f":"I71*C71","v":0}]
[null,null,null,null,null,null,"Schokoladenmousse",null,3.5,"/","Stk.",{"$f":"I72*C72","v":0}]
[null,null,null,null,null,null,"Caramelköpfli",null,3.5,"/","Stk.",{"$f":"I73*C73","v":0}]
[]
[null,null,"Apéro Packages"]
[]
[null,null,null,null,null,null,null,null,"Preis",null,"Einheit","Betrag"]
[]
[null,null,null,null,null,null,"APÉRO SMALL (für 5 Personen)",null,8.5,"/","Portion",{"$f":"I79*C79","v":0}]
[null,null,null,null,null,null,"Blätterteiggebäck 100g"]
[null,null,null,null,null,null,"Oliven 100g"]
[null,null,null,null,null,null,"Parmesan 60g"]
[]
[null,null,null,null,null,null,"APÉRO SUISSE (ab 5 Personen, je 1 Stück pro Person)",null,18.5,"/","Person",{"$f":"I84*C84","v":0}]
[null,null,null,null,null,null,"Chäschüechli"]
[null,null,null,null,null,null,"Schinkengipfeli"]
[null,null,null,null,null,null,"Kalbscipollata mit Senf "]
[null,null,null,null,null,null,"Knopfbrötli mit Bündnerfleisch"]
[null,null,null,null,null,null,"Tomaten-Mozzarella-Spiess"]
[]
[null,null,null,null,null,null,"APÉRO ASIA (ab 5 Personen, je 1 Stück pro Person) ",null,19.5,"/","Person",{"$f":"I91*C91","v":0}]
[null,null,null,null,null,null,"Frühlingsrolle mit Gemüse"]
[null,null,null,null,null,null,"Pouletstreifen Bangkok style"]
[null,null,null,null,null,null,"Tuna Tataki (Indonesien) mit Soja, Sake, Mirin und Rettich"]
[null,null,null,null,null,null,"Gebackene Crevette (Vietnam) im Tempurateig"]
[null,null,null,null,null,null,"Kokos-Zitronengras-Suppe "]
[]
[null,null,null,null,null,null,"APÉRO DELUXE (ab 10 Personen, je 1 Stück pro Person)",null,29.5,"/","Person",{"$f":"I98*C98","v":0}]
[null,null,null,null,null,null,"Süsskartoffel-Curry-Suppe"]
[null,null,null,null,null,null,"Macarons mit Ziegenfrischkäse und Feige"]
[null,null,null,null,null,null,"Mini Cheeseburger"]
[null,null,null,null,null,null,"Marinierter Lachswürfel (Norwegen) mit Wasabi"]
[null,null,null,null,null,null,"Rindstatar im Cornet "]
[null,null,null,null,null,null,"Black Tiger Crevette (Vietnam) mit Avocadomousse"]
[null,null,null,null,null,null,"Gefüllte Mini-Tortillas"]
[]
[]
[]
[]
[]
[]
[]
[]
[]
[]
[]
[]
[]
[]
[]
[]
[]
[]
[]
[]
[]
[]
[]
[]
[]
[null,null,null,null,null,null,null,null,null,null,null," "]

{"sheet":"Getränke","index":4,"n_rows":73,"n_cols":10,"rows_kept":73,"cut":false,"hidden":false,"merged":[[63,2,63,9],[0,2,0,9],[1,2,1,9],[36,2,36,9],[47,4,47,5],[58,4,58,5]]}
[null,null," GETRÄNKE\nAlle Getränke werden nach Verbrauch abgerechnet"]
[null,null,"Alkoholfreie Getränke"]
[]
[null,null,null,null,"WARME GETRÄNKE",null,"Preis",null,"Einheit","Betrag"]
[]
[null,null,null,null,"Kaffee",null,4,"/","Stk.",{"$f":"C6*G6","v":0}]
[null,null,null,null,"Tee, diverse Sorten",null,4,"/","Stk.",{"$f":"C7*G7","v":0}]
[null,null,null,null,"Latte Macchiato",null,5,"/","Stk.",0]
[null,null,null,null,"Cappuccino",null,5,"/","Stk.",0]
[]
[null,null,null,null,"FRUCHTSÄFTE"]
[]
[null,null,null,null,"Orangenjus ","1 lt",10,"/","Stk.",{"$f":"C13*G13","v":0}]
[null,null,null,null,"Michel Bodyguard Multivitamin","33 cl",3.5,"/","Stk.",{"$f":"C14*G14","v":0}]
[]
[null,null,null,null,"KALTE GETRÄNKE"]
[]
[null,null,null,null,"Lokales Wasser 37 mit Kohlensäure, Glasflasche","1 lt",7,"/","Stk.",{"$f":"C18*G18","v":0}]
[null,null,null,null,"Lokales Wasser 37 mit Kohlensäure, Glasflasche","50 cl",5,"/","Stk.",{"$f":"C19*G19","v":0}]
[null,null,null,null,"Lokales Wasser 37 ohne Kohlensäure, Glasflasche","1 lt",7,"/","Stk.",0]
[null,null,null,null,"Lokales Wasser 37 ohne Kohlensäure, Glasflasche","50 cl",5,"/","Stk.",0]
[null,null,null,null,"Coca-Cola, Glasflasche","33 cl",4.5,"/","Stk.",0]
[null,null,null,null,"Coca-Cola Zero, Glasflasche","33 cl",4.5,"/","Stk.",0]
[null,null,null,null,"Süessmost, Glasflasche","33 cl",4.5,"/","Stk.",0]
[null,null,null,null,"Rivella Rot, Glasflasche","33 cl",4.5,"/","Stk.",0]
[null,null,null,null,"Rivella Blau, Glasflasche","33 cl",4.5,"/","Stk.",0]
[]
[null,null,null,null,"KALTE GETRÄNKE (nur Paradeplatz)"]
[null,null,null,null,"Lokales Wasser 37 mit Kohlensäure, PET","50 cl",5,"/","Stk.",{"$f":"C29*G29","v":0}]
[null,null,null,null,"Lokales Wasser 37 ohne Kohlensäure, PET","50 cl",5,"/","Stk.",{"$f":"C30*G30","v":0}]
[null,null,null,null,"Coca-Cola, PET","50 cl",5,"/","Stk.",0]
[null,null,null,null,"Coca-Cola Zero, PET","50 cl",5,"/","Stk.",0]
[null,null,null,null,"Rivella Rot, PET","50 cl",5,"/","Stk.",0]
[null,null,null,null,"Rivella Blau, PET","50 cl",5,"/","Stk.",0]
[null,null,null,null,"Apfelschorle, PET","50 cl",5,"/","Stk.",0]
[]
[null,null,"Wein"]
[]
[null,null,null,null,"CHAMPAGNER/SCHAUMWEIN 75cl",null,"Preis",null,"Einheit","Betrag"]
[]
[null,null,null,null,"Rosé Spumante Motivo | Borgo Molino | Veneto Italien",null,43,"/","Stk.",{"$f":"C41*G41","v":0}]
[null,null,null,null,"Prosecco Extra Dry DOC | Borgo Molino | Veneto Italien",null,42,"/","Stk.",{"$f":"C42*G42","v":0}]
[null,null,null,null,"Laurent Perrier brut | Champagne Frankreich",null,84,"/","Stk.",0]
[]
[null,null,null,null,"WEISSWEIN 75cl"]
[]
[null,null,null,null,"Federweisser Pinot Noir | Watter Weine am Katzensee | Zürich",null,44,"/","Stk.",{"$f":"C47*G47","v":0}]
[null,null,null,null,"Pinot Grigio Grivò DOC | Volpe Pasini | Friaul Italien",null,42,"/","Stk.",{"$f":"C48*G48","v":0}]
[null,null,null,null,"Bianco di Merlot | Corti Nicola | Tessin",null,47,"/","Stk.",0]
[null,null,null,null,"Grüner Veltliner | Alexs | Burgenland Österreich",null,42,"/","Stk.",0]
[]
[null,null,null,null,"ROSÉWEIN 75cl"]
[]
[null,null,null,null,"Chiaretto Rosé | Riviera del Garda | Lombardei Italien",null,42,"/","Stk.",{"$f":"C54*G54","v":0}]
[]
[null,null,null,null,"ROTWEIN 75cl"]
[]
[null,null,null,null,"Maienfelder Pinot Noir Barrique | Tanner | Graubünden",null,56,"/","Stk.",{"$f":"C58*G58","v":0}]
[null,null,null,null,"Nero d'Avola Chiaramontesi | Luna Gaia | Sizilien Italien",null,43,"/","Stk.",{"$f":"C59*G59","v":0}]
[null,null,null,null,"Carmignano Riserva DOCG | Piaggia | Toscana Italien",null,63,"/","Stk.",0]
[null,null,null,null,"Colossal Reserva Tinto DOCa | Vinho Regional Lisboa | Portugal ",null,39,"/","Stk.",0]
[null,null,null,null,"Zweigelt Pahlen | Alexs | Burgenland Österreich",null,45,"/","Stk.",0]
[]
[null,null,"Bier"]
[]
[null,null,null,null,"BIER",null,"Preis",null,"Einheit","Betrag"]
[]
[null,null,null,null,"Feldschlösschen Original ","33 cl",5,"/","Stk.",{"$f":"C68*G68","v":0}]
[null,null,null,null,"Appenzeller Quöllfrisch","33 cl",5,"/","Stk.",{"$f":"C69*G69","v":0}]
[null,null,null,null,"Feldschlösschen, alkoholfrei","33 cl",5,"/","Stk.",0]
[null,null,null,null,"Appenzeller Quöllfrisch, alkoholfrei","33 cl",5,"/","Stk.",0]
[]
[null,null,null,null,"Die Getränke werden nach Verbrauch verrechnet"]